fUST/lending_fUST_20260115
["ID","MTS","AMOUNT","RATE_DAILY","PERIOD"]
[401957073,1768420238596,-506.9688385,0.00013273,2]
[401957075,1768420238605,-500.0,0.00013273,2]
[401957077,1768420238614,-500.0,0.00013273,2]
[401957079,1768420238624,-500.21355158,0.00013273,2]
[401957080,1768420238634,-533.7544997,0.00013273,2]
[401957081,1768420238644,-500.0,0.00013273,2]
[401957082,1768420238653,-428.55236375,0.00013273,2]
[401957083,1768420238663,-355.28517105,0.00013273,2]
[401957084,1768420238672,-500.0,0.00013273,2]
[401957085,1768420238681,-500.0,0.00013273,2]
[401957086,1768420238690,-500.0,0.00013273,2]
[401957087,1768420238698,-500.0,0.00013273,2]
[401957088,1768420238707,-500.0,0.00013273,2]
[401957089,1768420238716,-300.0,0.00013434,2]
[401957090,1768420238726,-300.0,0.00013434,2]
[401957091,1768420238735,-300.0,0.00013434,2]
[401957092,1768420238744,-300.0,0.00013434,2]
[401957093,1768420238753,-300.0,0.00013434,2]
[401957094,1768420238762,-300.0,0.00013434,2]
[401957095,1768420238772,-300.0,0.00013434,2]
[401957096,1768420238780,-300.0,0.00013434,2]
[401957097,1768420238790,-300.0,0.00013434,2]
[401957098,1768420238799,-300.0,0.00013434,2]
[401957099,1768420238808,-300.0,0.00013434,2]
[401957100,1768420238817,-300.0,0.00013434,2]
[401957101,1768420238826,-300.0,0.00013434,2]
[401957102,1768420238835,-300.0,0.00013434,2]
[401957104,1768420238844,-300.0,0.00013434,2]
[401957105,1768420238854,-600.0,0.00013434,2]
[401957107,1768420238863,-1133.33580398,0.00013508,2]
[401957109,1768420238872,-500.0,0.00013698,2]
[401957111,1768420238881,-253.34510422,0.00013698,2]
[401957113,1768420238890,-500.0,0.00013698,2]
[401957115,1768420238900,-500.0,0.00013698,2]
[401957118,1768420238910,-500.0,0.00013698,2]
[401957119,1768420238919,-500.0,0.00013698,2]
[401957122,1768420238930,-500.0,0.00013698,2]
[401957124,1768420238939,-500.0,0.00013698,2]
[401957126,1768420238948,-500.0,0.00013698,2]
[401957127,1768420238958,-500.0,0.00013698,2]
[401957130,1768420238967,-500.0,0.00013698,2]
[401957131,1768420238977,-500.0,0.00013698,2]
[401957134,1768420238988,-500.0,0.00013698,2]
[401957136,1768420238997,-500.0,0.00013698,2]
[401957138,1768420239007,-500.0,0.00013698,2]
[401957140,1768420239016,-500.0,0.00013698,2]
[401957142,1768420239030,-500.0,0.00013698,2]
[401957143,1768420239040,-500.0,0.00013698,2]
[401957145,1768420239050,-500.0,0.00013698,2]
[401957147,1768420239061,-500.0,0.00013698,2]
[401957149,1768420239071,-500.0,0.00013698,2]
[401957151,1768420239081,-500.0,0.00013698,2]
[401957153,1768420239095,-500.0,0.00013698,2]
[401957154,1768420239105,-173.91,0.00013698,2]
[401957156,1768420239115,-500.0,0.00013698,2]
[401957158,1768420239124,-500.0,0.00013698,2]
[401957159,1768420239135,-633.96263391,0.00013698,2]
[401957160,1768420239145,-260.74557216,0.00013698,2]
[401957162,1768420239155,-1000.0,0.00013699,2]
[401957163,1768420239168,-101830.3965897,0.00013699,2]
[401957164,1768420239179,-500.0,0.00013699,2]
[401957165,1768420239188,-500.0,0.00013699,2]
[401957166,1768420239200,-500.0,0.00013699,2]
[401957167,1768420239210,-500.91728774,0.00013699,2]
[401957168,1768420239219,-501.74975073,0.00013699,2]
[401957169,1768420239229,-500.0,0.00013699,2]
[401957170,1768420239238,-500.0,0.00013699,2]
[401957171,1768420239248,-500.0,0.00013699,2]
[401957172,1768420239257,-500.0,0.00013699,2]
[401957173,1768420239266,-337.12216238,0.00013699,2]
[401957174,1768420239277,-10000.0,0.00013735,2]
[401957175,1768420239287,-10000.0,0.00013735,2]
[401957176,1768420239296,-4343.48,0.00013735,2]
[401957177,1768420239306,-1549.64,0.00013763,2]
[401957178,1768420239316,-574.08865466,0.00013821,2]
[401957179,1768420239325,-771.86141758,0.00013821,2]
[401957180,1768420239335,-1002.88869488,0.00013821,2]
[401957181,1768420239344,-1000.0,0.00013821,2]
[401957182,1768420239354,-440.24648614,0.00013821,2]
[401957183,1768420239364,-695.77760179,0.00013821,2]
[401957184,1768420239373,-1000.0,0.00013821,2]
[401957185,1768420239383,-344.64451203,0.00013821,2]
[401957186,1768420239392,-1000.0,0.00013821,2]
[401957187,1768420239402,-270.27140379,0.00013971,2]
[401957188,1768420239413,-156.13,0.00014,2]
[401957189,1768420239423,-420.0,0.00014194,2]
[401957190,1768420239432,-501.43010395,0.00014247,2]
[401957191,1768420239441,-1000.0,0.00014247,2]
[401957192,1768420239451,-500.73561513,0.00014247,2]
[401957193,1768420239460,-1000.0,0.00014247,2]
[401957194,1768420239469,-1000.0,0.00014247,2]
[401957195,1768420239478,-1000.0,0.00014247,2]
[401957196,1768420239487,-323.8476233,0.00014247,2]
[401957197,1768420239498,-1500.0,0.00014368,2]
[401957198,1768420239507,-1500.0,0.00014368,2]
[401957199,1768420239516,-100000.0,0.00014444,2]
[401957200,1768420239526,-5000.0,0.0001451,2]
[401957201,1768420239535,-720.0,0.00014777,2]
[401957202,1768420239544,-1500.0,0.00014795,2]
[401957203,1768420239554,-1500.0,0.00014795,2]
[401957204,1768420239564,-1263.05707552,0.00014878,2]
[401957205,1768420239574,-595.01188659,0.000149,2]
[401957206,1768420239584,-403.91919138,0.000149,2]
[401957207,1768420239593,-403.91919137,0.000149,2]
[401957208,1768420239604,-403.91919137,0.000149,2]
[401957209,1768420239614,-2031.81939639,0.00014916,2]
[401957210,1768420239623,-2000.0,0.00014916,2]
[401957211,1768420239632,-1019.00256747,0.00015,2]
[401957212,1768420239642,-33275.62597585,0.00015,2]
[401957213,1768420239652,-1372.43724231,0.00015,3]
[401957214,1768420239663,-151.00724332,0.00015,2]
[401957215,1768420239672,-16286.19559247,0.00015,7]
[401957216,1768420239681,-628.932387,0.00015068,2]
[401957217,1768420239690,-494.13383061,0.00015203,2]
[401957218,1768420239699,-46230.244869,0.0001526,2]
[401957219,1768420239708,-15447.6406635,0.00015268,2]
[401957220,1768420239718,-2150.6252191,0.00015291,2]
[401957221,1768420239727,-958.71445134,0.00015314,2]
[401957222,1768420239736,-543.64135419,0.00015338,2]
[401957223,1768420239745,-2000.0,0.00015342,2]
[401957224,1768420239755,-2000.0,0.00015342,2]
[401957225,1768420239764,-3740.0156763,0.00015345,2]
[401957226,1768420239773,-2500.0,0.00015464,2]
[401957227,1768420239783,-180.32387442,0.00015567,2]
[401957228,1768420239791,-587.0,0.00015567,2]
[401957229,1768420239801,-2500.0,0.0001589,2]
[401957230,1768420239810,-2500.0,0.0001589,2]
[401957231,1768420239819,-215.88592206,0.00016,2]
[401957232,1768420239828,-3000.0,0.00016012,2]
[401957233,1768420239837,-155.31,0.000162,2]
[401957234,1768420239846,-721.29549768,0.00016225,2]
[401957235,1768420239855,-864.0,0.00016255,2]
[401957236,1768420239864,-500.0,0.00016438,2]
[401957237,1768420239873,-235.46469886,0.00016438,2]
[401957238,1768420239882,-500.0,0.00016438,2]
[401957239,1768420239892,-500.0,0.00016438,2]
[401957241,1768420239902,-200.0,0.00016438,2]
[401957242,1768420239911,-1364.52541442,0.00016438,2]
[401957243,1768420239921,-1319.68437302,0.00016438,2]
[401957244,1768420239930,-184.29,0.0001644,2]
[401957245,1768420239939,-184.29,0.0001644,2]
[401957246,1768420239948,-184.29,0.0001644,2]
[401957247,1768420239957,-184.29,0.0001644,2]
[401957248,1768420239966,-3500.0,0.0001656,2]
[401957249,1768420239975,-2174.56541674,0.00016832,2]
[401957250,1768420239984,-1622.91486978,0.00016882,2]
[401957251,1768420239993,-95477.61285994,0.00017,2]
[401957252,1768420240003,-296.0,0.00017072,2]
[401957253,1768420240012,-823.0,0.00017073,2]
[401957255,1768420240022,-4000.0,0.00017108,2]
[401957257,1768420240034,-559.53389643,0.00017203,2]
[401957258,1768420240043,-346.0,0.00017266,2]
[401957259,1768420240051,-46230.244869,0.00017376,2]
[401957261,1768420240060,-15447.6406635,0.0001739,2]
[401957264,1768420240070,-5000.0,0.00017412,2]
[401957265,1768420240080,-449.0,0.00017424,2]
[401957266,1768420240089,-2150.6252191,0.00017436,2]
[401957267,1768420240099,-400.0,0.00017534,2]
[401957268,1768420240108,-2885.18199072,0.00017541,2]
[401957269,1768420240118,-3740.0156763,0.00017545,2]
[401957270,1768420240127,-3834.85780536,0.00017554,2]
[401957271,1768420240137,-2137.48177052,0.000176,2]
[401957272,1768420240146,-4500.0,0.00017656,2]
[401957273,1768420240156,-1041.66666667,0.00017867,2]
[401957274,1768420240165,-1000.0,0.00017881,2]
[401957275,1768420240174,-150512.98381193,0.00018,2]
[401957276,1768420240183,-42910.83449574,0.00018,5]
[401957277,1768420240192,-4508.0968605,0.00018199,2]
[401957278,1768420240201,-5000.0,0.00018204,2]
[401957279,1768420240211,-664.7,0.00018207,2]
[401957280,1768420240220,-4892.77218767,0.00018325,2]
[401957281,1768420240229,-156.13,0.000184,2]
[401957282,1768420240239,-628.932387,0.00018493,2]
[401957283,1768420240247,-600.0,0.0001863,2]
[401957284,1768420240257,-1152.0,0.00018724,2]
[401957285,1768420240267,-5500.0,0.00018752,2]
[401957287,1768420240276,-6491.65947913,0.00018857,2]
[401957288,1768420240286,-1451.86588583,0.00018863,2]
[401957289,1768420240295,-231483.25817476,0.000189,5]
[401957290,1768420240305,-158.67917934,0.000189,2]
[401957291,1768420240314,-2603.49,0.00019,2]
[401957292,1768420240323,-17969.48957745,0.00019,2]
[401957293,1768420240333,-435.950632,0.00019,7]
[401957294,1768420240342,-1447.235355,0.00019,7]
[401957295,1768420240352,-176.275691,0.00019,7]
[401957296,1768420240361,-3618.088387,0.00019039,7]
[401957297,1768420240371,-2632.62766803,0.00019047,2]
[401957299,1768420240380,-300.0,0.00019178,3]
[401957301,1768420240389,-8881.73948,0.00019178,7]
[401957303,1768420240398,-3622.3,0.000192,2]
[401957305,1768420240407,-24704.64,0.000192,2]
[401957307,1768420240416,-171.24,0.000192,2]
[401957309,1768420240425,-194.8,0.000192,2]
[401957311,1768420240436,-173.82,0.000192,2]
[401957313,1768420240445,-624.93396225,0.00019203,2]
[401957315,1768420240454,-500.99801519,0.00019205,5]
[401957317,1768420240464,-227.452504,0.00019205,7]
[401957319,1768420240472,-5052.22830208,0.00019224,2]
[401957321,1768420240481,-151.635003,0.00019278,7]
[401957323,1768420240490,-6000.0,0.000193,2]
[401957325,1768420240499,-46230.244869,0.00019491,2]
[401957327,1768420240510,-664.7,0.00019506,2]
[401957329,1768420240519,-15447.6406635,0.00019513,2]
[401957331,1768420240528,-8835.86984659,0.00019515,2]
[401957333,1768420240537,-2150.6252191,0.00019582,2]
[401957334,1768420240546,-1000.0,0.00019669,2]
[401957336,1768420240555,-244.0,0.00019669,2]
[401957338,1768420240564,-800.0,0.00019726,2]
[401957340,1768420240573,-250.0,0.00019726,2]
[401957342,1768420240582,-3740.0156763,0.00019745,2]
[401957344,1768420240591,-8628.43006206,0.00019794,2]
[401957346,1768420240600,-438.78794467,0.0001981,9]
[401957348,1768420240610,-8698.26166696,0.00019818,2]
[401957350,1768420240619,-22204.3487,0.00019848,7]
[401957352,1768420240628,-6500.0,0.00019848,2]
[401957354,1768420240637,-155.31,0.000199,2]
[401957356,1768420240646,-157.16,0.000199,2]
[401957358,1768420240655,-668.88471487,0.0002,2]
[401957360,1768420240666,-14703.49659754,0.0002,2]
[401957363,1768420240675,-371.66132516,0.0002,2]
[401957366,1768420240684,-6000.89259863,0.0002,2]
[401957368,1768420240694,-804.32909815,0.0002,2]
[401957370,1768420240703,-163524.2208646,0.0002,7]
[401957372,1768420240713,-74737.25492349,0.0002,2]
[401957374,1768420240722,-809.68655087,0.0002,2]
[401957376,1768420240731,-75199.65731769,0.0002,7]
[401957378,1768420240740,-202.7514447,0.0002,2]
[401957380,1768420240749,-504.32904356,0.0002,2]
[401957382,1768420240758,-673.07189375,0.0002,10]
[401957384,1768420240767,-17587.92944107,0.0002,2]
[401957386,1768420240776,-202.811817,0.0002,7]
[401957388,1768420240785,-182.95072115,0.0002,2]
[401957390,1768420240794,-151.55000802,0.0002,2]
[401957392,1768420240803,-151.0,0.0002,2]
[401957394,1768420240812,-151.0,0.0002,2]
[401957396,1768420240821,-503.71435101,0.0002013,2]
[401957398,1768420240830,-410.152411,0.00020173,2]
[401957400,1768420240840,-410.152411,0.00020173,2]
[401957402,1768420240849,-410.152411,0.00020173,2]
[401957404,1768420240858,-410.152411,0.00020173,2]
[401957406,1768420240866,-477.592659,0.00020173,2]
[401957408,1768420240875,-477.592659,0.00020173,2]
[401957410,1768420240884,-477.592659,0.00020173,2]
[401957412,1768420240893,-477.592659,0.00020173,2]
[401957414,1768420240902,-151.0,0.00020173,2]
[401957416,1768420240911,-151.0,0.00020173,2]
[401957418,1768420240921,-186.591978,0.00020173,2]
[401957420,1768420240930,-186.591978,0.00020173,2]
[401957422,1768420240939,-186.591978,0.00020173,2]
[401957424,1768420240948,-186.591978,0.00020173,2]
[401957426,1768420240957,-151.0,0.00020173,2]
[401957427,1768420240966,-151.0,0.00020173,2]
[401957429,1768420240975,-151.0,0.00020173,2]
[401957431,1768420240984,-151.0,0.00020173,2]
[401957433,1768420240993,-11540.72796289,0.00020173,2]
[401957435,1768420241002,-151.0,0.00020223,2]
[401957437,1768420241011,-350.0,0.00020274,2]
[401957439,1768420241023,-8893.76196401,0.000203,2]
[401957441,1768420241032,-151.0,0.00020377,2]
[401957443,1768420241041,-223.282541,0.00020395,7]
[401957445,1768420241050,-5683.87260271,0.00020396,2]
[401957447,1768420241060,-3622.3,0.000204,2]
[401957449,1768420241070,-24704.64,0.000204,2]
[401957451,1768420241080,-171.24,0.000204,2]
[401957453,1768420241090,-194.8,0.000204,2]
[401957455,1768420241099,-1613.0,0.00020535,2]
[401957457,1768420241108,-300.0,0.00020548,4]
[401957459,1768420241117,-438.78794467,0.00020574,10]
[401957461,1768420241126,-1389.51235473,0.0002061,2]
[401957463,1768420241135,-664.7,0.00020805,2]
[401957464,1768420241145,-1001.4141805,0.00020822,2]
[401957466,1768420241154,-450.0,0.00020822,2]
[401957468,1768420241164,-256.51440562,0.000209,2]
[401957470,1768420241173,-277.38884084,0.00021,2]
[401957472,1768420241183,-45938.40026941,0.00021,2]
[401957526,1768420241685,-1326.66510949,0.00021,2]
[401957528,1768420241700,-1473.19474389,0.00021,2]
[401957640,1768420243883,-506.94009618,0.00021,2]
[401957641,1768420243894,-754.79978103,0.00021,2]
[401957642,1768420243903,-2166.37021897,0.00021032,2]
[401957643,1768420244042,-436.73908453,0.00021032,2]
[401957644,1768420244053,-6337.74457258,0.00021032,2]
[401957645,1768420244063,-690.33402806,0.00021203,2]
[401957646,1768420244072,-438.78794467,0.00021337,11]
[401957647,1768420244082,-550.0,0.0002137,2]
[401957648,1768420244092,-1040.0176033,0.000215,2]
[401957649,1768420244101,-5566.66629019,0.000215,2]
[401957650,1768420244113,-7297.81430003,0.000215,2]
[401957651,1768420244123,-1000.0,0.00021635,10]
[401957653,1768420244132,-492.0,0.00021635,10]
[401957654,1768420244141,-219.379344,0.00021635,7]
[401957655,1768420244150,-171.24,0.000217,2]
[401957656,1768420244159,-194.8,0.000217,2]
[401957657,1768420244169,-3622.3,0.000218,2]
[401957658,1768420244179,-9704.47966874,0.000218,2]
[401957659,1768420244189,-8566.3774352,0.000218,2]
[401957660,1768420244205,-414.32248862,0.000218,2]
[401957691,1768420246342,-6019.46040744,0.000218,2]
[401957693,1768420246351,-181.646096,0.0002185,7]
[401957695,1768420246360,-603.014731,0.0002185,7]
[401957697,1768420246369,-628.932387,0.00021918,2]
[401957699,1768420246377,-151.0,0.00021918,2]
[401957701,1768420246386,-180.50802,0.00021918,2]
[401957703,1768420246395,-151.0,0.00021918,2]
[401957705,1768420246406,-151.0,0.00021918,2]
[401957707,1768420246415,-151.0,0.00021918,2]
[401957709,1768420246424,-151.0,0.00021918,2]
[401957711,1768420246433,-151.0,0.00021918,2]
[401957713,1768420246442,-280.086265,0.00021918,2]
[401957716,1768420246451,-280.086265,0.00021918,2]
[401957718,1768420246460,-280.086265,0.00021918,2]
[401957721,1768420246469,-280.086265,0.00021918,2]
[401957723,1768420246477,-277.161137,0.00021918,2]
[401957725,1768420246487,-277.161137,0.00021918,2]
[401957727,1768420246496,-151.0,0.00021918,2]
[401957729,1768420246505,-277.161137,0.00021918,2]
[401957730,1768420246515,-277.161137,0.00021918,2]
[401957732,1768420246524,-306.935561,0.00021918,2]
[401957735,1768420246533,-306.935561,0.00021918,2]
[401957736,1768420246543,-306.935561,0.00021918,2]
[401957737,1768420246552,-306.935561,0.00021918,2]
[401957738,1768420246562,-239.496216,0.00021918,2]
[401957739,1768420246571,-239.496216,0.00021918,2]
[401957741,1768420246580,-239.496216,0.00021918,2]
[401957743,1768420246590,-239.496216,0.00021918,2]
[401957744,1768420246599,-151.0,0.00021918,2]
[401957745,1768420246608,-151.0,0.00021918,2]
[401957746,1768420246618,-151.0,0.00021918,2]
[401957747,1768420246627,-151.0,0.00021918,2]
[401957748,1768420246636,-1138.584656,0.00021918,2]
[401957749,1768420246646,-1138.584656,0.00021918,2]
[401957750,1768420246654,-1138.584656,0.00021918,2]
[401957752,1768420246663,-1138.584656,0.00021918,2]
[401957753,1768420246671,-352.688053,0.00021918,2]
[401957754,1768420246683,-151.0,0.00021918,2]
[401957755,1768420246692,-352.688053,0.00021918,2]
[401957756,1768420246701,-151.0,0.00021918,2]
[401957757,1768420246711,-352.688053,0.00021918,2]
[401957758,1768420246720,-352.688053,0.00021918,2]
[401957759,1768420246730,-258.319491,0.00021918,2]
[401957760,1768420246739,-258.319491,0.00021918,2]
[401957761,1768420246748,-258.319491,0.00021918,2]
[401957762,1768420246757,-258.319491,0.00021918,2]
[401957763,1768420246766,-169.388304,0.00021918,2]
[401957764,1768420246775,-151.0,0.00021918,2]
[401957765,1768420246784,-151.0,0.00021918,2]
[401957766,1768420246793,-151.0,0.00021918,2]
[401957767,1768420246802,-151.0,0.00021918,2]
[401957768,1768420246811,-151.0,0.00021918,2]
[401957769,1768420246820,-151.0,0.00021918,2]
[401957770,1768420246830,-181.655666,0.00021918,2]
[401957771,1768420246839,-151.0,0.00021918,2]
[401957772,1768420246848,-151.0,0.00021918,2]
[401957773,1768420246857,-151.0,0.00021918,2]
[401957774,1768420246866,-238.898603,0.00021918,2]
[401957775,1768420246875,-238.898603,0.00021918,2]
[401957776,1768420246884,-151.0,0.00021918,2]
[401957777,1768420246894,-238.898603,0.00021918,2]
[401957778,1768420246903,-238.898603,0.00021918,2]
[401957779,1768420246912,-151.0,0.00021918,2]
[401957780,1768420246921,-474.464878,0.00021918,2]
[401957781,1768420246931,-474.464878,0.00021918,2]
[401957782,1768420246939,-474.464878,0.00021918,2]
[401957783,1768420246949,-474.464878,0.00021918,2]
[401957784,1768420246958,-151.0,0.00021918,2]
[401957785,1768420246968,-259.047216,0.00021918,2]
[401957786,1768420246977,-259.047216,0.00021918,2]
[401957787,1768420246986,-259.047216,0.00021918,2]
[401957788,1768420246995,-259.047216,0.00021918,2]
[401957789,1768420247003,-151.0,0.00021918,2]
[401957790,1768420247012,-2213.011208,0.00021918,2]
[401957791,1768420247029,-2213.011208,0.00021918,2]
[401957792,1768420247038,-2213.011208,0.00021918,2]
[401957793,1768420247047,-2213.011208,0.00021918,2]
[401957794,1768420247056,-153.839404,0.00021918,2]
[401957795,1768420247066,-151.0,0.00021918,2]
[401957796,1768420247074,-151.0,0.00021918,2]
[401957797,1768420247082,-353.920469,0.00021918,2]
[401957798,1768420247096,-353.920469,0.00021918,2]
[401957799,1768420247105,-353.920469,0.00021918,2]
[401957800,1768420247114,-353.920469,0.00021918,2]
[401957801,1768420247123,-151.0,0.00021918,2]
[401957802,1768420247132,-151.0,0.00021918,2]
[401957803,1768420247141,-151.0,0.00021918,2]
[401957804,1768420247150,-151.0,0.00021918,2]
[401957805,1768420247159,-151.0,0.00021918,2]
[401957806,1768420247169,-151.0,0.00021918,2]
[401957807,1768420247179,-151.0,0.00021918,2]
[401957808,1768420247188,-241.541461,0.00021918,2]
[401957809,1768420247197,-164.260276,0.00021918,2]
[401957810,1768420247206,-151.0,0.00021918,2]
[401957811,1768420247215,-151.0,0.00021918,2]
[401957812,1768420247224,-196.692978,0.00021918,2]
[401957813,1768420247233,-151.0,0.00021918,2]
[401957814,1768420247243,-196.692978,0.00021918,2]
[401957815,1768420247253,-151.0,0.00021918,2]
[401957816,1768420247262,-196.692978,0.00021918,2]
[401957817,1768420247272,-151.0,0.00021918,2]
[401957818,1768420247281,-196.692978,0.00021918,2]
[401957819,1768420247290,-151.0,0.00021918,2]
[401957820,1768420247300,-151.0,0.00021918,2]
[401957821,1768420247309,-151.0,0.00021918,2]
[401957822,1768420247319,-151.0,0.00021918,2]
[401957823,1768420247329,-151.0,0.00021918,2]
[401957824,1768420247338,-151.0,0.00021918,2]
[401957825,1768420247348,-151.0,0.00021918,2]
[401957826,1768420247357,-151.0,0.00021918,2]
[401957827,1768420247367,-151.0,0.00021918,2]
[401957828,1768420247376,-151.0,0.00021918,2]
[401957829,1768420247385,-151.0,0.00021918,2]
[401957830,1768420247394,-151.0,0.00021918,2]
[401957831,1768420247404,-151.0,0.00021918,2]
[401957832,1768420247414,-151.0,0.00021918,2]
[401957833,1768420247423,-151.0,0.00021918,2]
[401957834,1768420247434,-151.0,0.00021918,2]
[401957835,1768420247444,-234.643774,0.00021918,2]
[401957836,1768420247454,-151.0,0.00021918,2]
[401957837,1768420247463,-151.0,0.00021918,2]
[401957838,1768420247473,-151.0,0.00021918,2]
[401957839,1768420247482,-155.398666,0.00021918,2]
[401957840,1768420247492,-151.0,0.00021918,2]
[401957841,1768420247502,-151.0,0.00021918,2]
[401957842,1768420247512,-151.0,0.00021918,2]
[401957843,1768420247522,-151.0,0.00021918,2]
[401957844,1768420247531,-1335.157647,0.00021918,2]
[401957845,1768420247541,-151.0,0.00021918,2]
[401957846,1768420247553,-1335.157647,0.00021918,2]
[401957847,1768420247563,-1335.157647,0.00021918,2]
[401957848,1768420247572,-1335.157647,0.00021918,2]
[401957849,1768420247582,-650.0,0.00021918,2]
[401957850,1768420247592,-1518.63577002,0.00021948,13]
[401957851,1768420247602,-568.82796279,0.0002196,10]
[401957852,1768420247611,-8893.76196394,0.00021972,2]
[401957853,1768420247621,-2259.92,0.00022,7]
[401957854,1768420247631,-438.78794467,0.000221,13]
[401957855,1768420247641,-664.7,0.00022103,2]
[401957856,1768420247650,-2000.0,0.00022455,7]
[401957857,1768420247660,-300.0,0.00022466,2]
[401957858,1768420247669,-200.0,0.00022466,2]
[401957859,1768420247678,-750.0,0.00022466,2]
[401957860,1768420247687,-1033.75044732,0.000225,2]
[401957861,1768420247697,-151.0,0.000225,2]
[401957862,1768420247706,-228.779396,0.000225,2]
[401957863,1768420247716,-151.0,0.000225,2]
[401957864,1768420247725,-374.04714621,0.000225,2]
[401957865,1768420506777,169.0,0.00022436,120]
[401957866,1768420508107,169.0,0.00023558,120]
[401957867,1768420530693,159.0,0.00022443,120]
[401957868,1768420531995,159.0,0.00023565,120]
[401957869,1768420735742,3462.82,0.00027397,120]
[401957870,1768420803046,155.81,5e-05,2]
[401957877,1768421280581,172.52,4.995e-05,2]
[401957913,1768421432324,-155.81,0.000106,2]
[401957915,1768421432334,-333.19,0.000106,2]
[401957918,1768421432345,-235.81,0.000106,2]
[401957919,1768421432356,-397.81911179,0.00011175,2]
[401957921,1768421432367,-248.47050888,0.00011175,2]
[401957923,1768421432377,-839.29356218,0.00012667,2]
[401957925,1768421432385,-242.78316707,0.00012942,2]
[401957927,1768421432395,-169.94821694,0.00012942,2]
[401957929,1768421432404,-300.0,0.00012997,2]
[401957930,1768421432413,-886.64187759,0.00012997,2]
[401957933,1768421432435,-313.35812241,0.00012997,2]
[401957934,1768421432444,-161.07899071,0.00012998,2]
[401957936,1768421432454,-161.24006971,0.00012998,2]
[401957938,1768421432464,-337.32281717,0.00012998,2]
[401957948,1768421438519,-1432.62840904,0.00012998,2]
[401957949,1768421438578,-48230.04877379,0.00012998,2]
[401957950,1768421438588,-469.42655191,0.00013175,2]
[401957951,1768421438599,-300.0,0.00013201,2]
[401957952,1768421438609,-300.0,0.00013201,2]
[401957953,1768421438619,-300.0,0.00013201,2]
[401957954,1768421438630,-300.0,0.00013201,2]
[401957955,1768421438640,-300.0,0.00013201,2]
[401957956,1768421438651,-300.0,0.00013201,2]
[401957957,1768421438661,-300.0,0.00013201,2]
[401957958,1768421438673,-300.0,0.00013201,2]
[401957959,1768421438682,-300.0,0.00013201,2]
[401957960,1768421438692,-300.0,0.00013201,2]
[401957961,1768421438704,-300.0,0.00013201,2]
[401957962,1768421438714,-300.0,0.00013201,2]
[401957963,1768421438723,-300.0,0.00013201,2]
[401957964,1768421438732,-300.0,0.00013201,2]
[401957965,1768421438741,-300.0,0.00013201,2]
[401957966,1768421438751,-600.0,0.00013201,2]
[401957974,1768421438998,-500.0,0.00013273,2]
[401957975,1768421439017,-500.0,0.00013273,2]
[401957976,1768421439027,-500.0,0.00013273,2]
[401957977,1768421439037,-500.0,0.00013273,2]
[401957978,1768421439047,-500.0,0.00013273,2]
[401957979,1768421439057,-500.0,0.00013273,2]
[401957980,1768421439067,-500.0,0.00013273,2]
[401957981,1768421439077,-500.0,0.00013273,2]
[401957982,1768421439089,-500.0,0.00013273,2]
[401957983,1768421439099,-500.0,0.00013273,2]
[401957984,1768421439109,-500.0,0.00013273,2]
[401957985,1768421439119,-500.0,0.00013273,2]
[401957986,1768421439129,-500.0,0.00013273,2]
[401957987,1768421439138,-500.0,0.00013273,2]
[401957988,1768421439148,-500.0,0.00013273,2]